Cogmind - Beta 15 @@@ ROGUE MODE // 2025.09.24 @ 21:49:46 Player: luka.null Result: Destroyed self with Grenade Launcher Performance ------------- Evolutions (0) 0 Regions Visited (1) 200 Robots Destroyed (15) 75 Value Destroyed (228) 228 Prototype IDs (0) 0 Alien Tech Used (0) 0 Bonus (0) 0 TOTAL SCORE: 503 Bonus ------- None Cogmind --------- Core Integrity 0/250 Matter 282/300 Energy 92/100 System Corruption 0% Temperature Cool (0) Movement Core (700) Ox13 Location -10/Materials Parts ------- > --- POWER (1) -------- (None) > --- PROPULSION (2) --- (None) > --- UTILITY (2) ------ High-capacity Storage Unit > --- WEAPON (2) ------- Small Laser > --- INVENTORY (20) --- Ion Engine Light Ion Engine Signal Interpreter Small Laser Light Assault Rifle Peak State ------------ > --- POWER ------------ Ion Engine > --- PROPULSION ------- Light Treads Light Treads > --- UTILITY ---------- High-capacity Storage Unit Light Armor Plating > --- WEAPON ----------- Medium Laser Small Laser > --- INVENTORY -------- Ion Engine Light Ion Engine Signal Interpreter Small Laser Light Assault Rifle Grenade Launcher [Rating: 7] Favorites ----------- Power Ion Engine Engine Ion Engine Propulsion Light Treads Treads Light Treads Utility Small Storage Unit Storage Small Storage Unit Protection Light Armor Plating Weapon Small Laser Energy Gun Small Laser Launcher Grenade Launcher Build | -11 -10 ------- Run | Yrd Mat Slots Evolved . | . . Power . | . . Propulsion . | . . Utility . | . . Weapon . | . . Parts Attached 12 | 6 6 Power 1 | 1 . Engine 1 | 1 . Core . | . . Reactor . | . . Propulsion 2 | 2 . Treads 2 | 2 . Leg . | . . Wheel . | . . Hover . | . . Flight . | . . Utility 4 | 1 3 Device . | . . Storage 3 | 1 2 Processor . | . . Hackware . | . . Protection 1 | . 1 Artifact . | . . Weapon 5 | 2 3 Energy Gun 4 | 2 2 Energy Cannon . | . . Ballistic Gun . | . . Ballistic Cannon . | . . Launcher 1 | . 1 Special Weapon . | . . Impact Weapon . | . . Slashing Weapon . | . . Piercing Weapon . | . . Special Melee Weapon . | . . Unidentified Prototypes . | . . Parts Lost 7 | . 7 Power 1 | . 1 Propulsion 2 | . 2 Utility 1 | . 1 Weapon 3 | . 3 Highest Loss Streak 5 | . 5 To Critical Strikes . | . . Average Backups 5 | 1 5 Power 1 | . 1 Propulsion . | . . Utility . | . . Weapon 2 | . 3 Tool/Special . | . . Unused Backups 4 | . 4 Power 2 | . 2 Propulsion . | . . Utility 1 | . 1 Weapon 1 | . 1 Tool/Special . | . . Average Slot Usage (%) 77 | . 77 Engine 12 | . 12 Treads 24 | . 24 Storage 14 | . 14 Protection 2 | . 2 Energy Gun 20 | . 20 Launcher 1 | . 1 Peak Build Rating 7 | 6 7 Average Rating 5 | 5 5 On Entrance 3 | . 6 Naked Turns . | . . Heaviest Build 51 | 12 51 Greatest Support 40 | 40 40 Greatest Overweight (x) 14 | 2 14 Average Overweight (x) . | . . Largest Inventory Capacity 20 | 8 20 Average Capacity 11 | 7 12 Most Carried 8 | 2 8 Average Carried 5 | 1 6 Final Capacity 20 | 8 20 Final Carried 5 | 2 5 Class Distribution -------------------- 100% | Mutant Dominant Class ---------------- Mutant | -10/Materials Resources | -11 -10 ----------- Run | Yrd Mat Matter Collected 300 | 213 87 Remotely . | . . Salvage Created 225 | . 225 Parts 17 | . 17 Haulers Intercepted . | . . Recyclers Shooed 1 | . 1 Parts Field Recycled . | . . Retrieved Matter . | . . Parts Self-Destructed . | . . Prevented . | . . Kills | -11 -10 ------- Run | Yrd Mat Combat Hostiles Destroyed 14 | . 14 Melee 1 | . 1 Guns 9 | . 9 AOE 4 | . 4 Classes Destroyed 3 | . 3 Watcher 1 | . 1 Swarmer 11 | . 11 Grunt 3 | . 3 Best Kill Streak 11 | . 11 Combat Bots Only 5 | . 5 Max Kills in Single Turn 2 | . 2 Gunslinging . | . . Exploded 2 | . 2 Melee 1 | . 1 Uniques/NPCs Destroyed . | . . Combat | -11 -10 -------- Run | Yrd Mat Hostile Shots Fired 143 | . 143 Missed 38 | . 38 Hits 105 | . 105 Projectile 105 | . 105 Damage Taken 999 | . 999 Core 281 | . 281 Absorbed by Shields . | . . Core Remaining (%) 100 | 100 . Volleys Fired 32 | . 32 Largest 2 | . 2 Hottest 90 | . 90 Shots Fired 49 | . 49 Gun 44 | . 44 Cannon . | . . Launcher 5 | . 5 Special . | . . Kinetic . | . . Thermal 39 | . 39 Explosive 5 | . 5 Electromagnetic 5 | . 5 Robot Hit Streak 6 | . 6 Robot Miss Streak 3 | . 3 Penetration Max . | . . Secondary Targets 1 | . 1 Max Gunslinging Chain 1 | . 1 Shots Hit Robots 28 | . 28 Core Hits 18 | . 18 Critical Kills . | . . Critical Parts Destroyed . | . . Critical Strikes 3 | . 3 Burn 3 | . 3 Melee Attacks . | . . Impact . | . . Slashing . | . . Piercing . | . . Sneak Attacks . | . . Combat Hostiles . | . . Follow-up Attacks . | . . Damage Inflicted 693 | . 693 Guns 336 | . 336 Cannons . | . . Explosions 336 | . 336 Melee . | . . Ramming 21 | . 21 Kinetic . | . . Thermal 281 | . 281 Explosive 336 | . 336 Electromagnetic 55 | . 55 Impact . | . . Slashing . | . . Piercing . | . . Highest Corruption . | . . Average Corruption . | . . Corruption Purged . | . . Corruption Blocked . | . . Overload Shots . | . . Overflow Damage 34 | . 34 Projectiles . | . . Explosions 34 | . 34 Melee . | . . Knockbacks . | . . Impact . | . . Kinetic . | . . Secondary . | . . Self-Inflicted Damage 87 | . 87 Shots 3 | . 3 Rammed 14 | . 14 Targets Rammed 15 | . 15 Kicked . | . . Crushed 1 | . 1 Highest Temperature 196 | . 196 Average Temperature 75 | . 75 Received Heat Transfer 162 | . 162 Siege Activations . | . . Martial Activations . | . . Shielding Activations . | . . Robots Disrupted . | . . Combat Hostiles . | . . Robots Corrupted . | . . Combat Hostiles . | . . Parts Fried . | . . Impact Corruptions . | . . Robots Melted . | . . Combat Hostiles . | . . Parts Melted 1 | . 1 Heat Transferred 990 | . 990 Parts Sabotaged . | . . Parts Stolen . | . . Parts Stripped . | . . Power Chain Reactions . | . . Alert | -11 -10 ------- Run | Yrd Mat Maximum Alert Level . | . . Low Security (%) 100 | 100 100 Level 1 . | . . Level 2 . | . . Level 3 . | . . Level 4 . | . . Level 5 . | . . High Security . | . . Max Security . | . . Peak Influence 182 | . 182 Initial . | . . Average 25 | . 28 Influence Increases 369 | . 369 Destroy 0b10 Robot/C 280 | . 280 Destroy 0b10 Robot/NC 5 | . 5 Destroy Leader 62 | . 62 Successful Hack 3 | . 3 Destroy Structure 19 | . 19 Influence Decreases 191 | . 191 Time Decay 121 | . 121 Lost Part 70 | . 70 Squads Dispatched 2 | . 2 Investigation . | . . Extermination . | . . Reinforcement 2 | . 2 Assault . | . . Garrison . | . . Intercept . | . . Searches Triggered . | . . Construction Impeded . | . . Haulers Reinforced . | . . Active Scanning Responses . | . . Cargo Convoy Interrupts . | . . Stealth | -11 -10 --------- Run | Yrd Mat Distress Signals 2 | . 2 Communications Jammed . | . . Distress Signals . | . . Times Spotted 22 | . 22 Peak Tracking Total 6 | . 6 Tactical Retreats . | . . Traps | -11 -10 ------- Run | Yrd Mat Traps Triggered . | . . Indirectly . | . . Trap Hack Attempts . | . . Triggered . | . . Disarmed 1 | . 1 Reprogrammed . | . . Reused . | . . Traps Extracted . | . . Installed . | . . Triggered . | . . Machines | -11 -10 ---------- Run | Yrd Mat Machines Disabled . | . . Max in Single Turn . | . . Machines Repaired . | . . Machines Dismantled . | . . Machines Sabotaged . | . . Overloaded Fab Kills . | . . Hacking | -11 -10 --------- Run | Yrd Mat Machines Accessed 2 | . 2 Terminals 2 | . 2 Fabricators . | . . Repair Stations . | . . Recycling Units . | . . Scanalyzers . | . . Garrison Access . | . . Total Hacks 6 | . 6 Successful 5 | . 5 Failed 1 | . 1 Catastrophic . | . . Database Lockouts . | . . Manual 2 | . 2 Terminals 6 | . 6 Fabricators . | . . Repair Stations . | . . Recycling Units . | . . Scanalyzers . | . . Garrison Access . | . . Terminal Hacks 3 | . 3 Locate Traps 2 | . 2 Disarm Traps 1 | . 1 Fabricator Hacks . | . . Repair Station Hacks . | . . Recycling Unit Hacks . | . . Scanalyzer . | . . Garrison Access Hacks . | . . Unauthorized Hacks 2 | . 2 Terminals 2 | . 2 Botnet 2 | . 2 Fabricators . | . . Repair Stations . | . . Recycling Units . | . . Scanalyzers . | . . Garrison Access . | . . Data Cores Recovered . | . . Used . | . . Hacking Detections 1 | . 1 Full Trace Events . | . . Feedback Events . | . . Feedback Blocked . | . . Robot Schematics Acquired . | . . Robots Built . | . . Authchips . | . . Time . | . . Total Robot Build Rating . | . . Part Schematics Acquired . | . . Parts Built . | . . Authchips . | . . Time . | . . Total Part Build Rating . | . . Parts Repaired . | . . Time . | . . Parts Recycled . | . . Recycled Matter . | . . Retrieved Matter . | . . Retrieved Components . | . . Parts Scanalyzed . | . . Part Schematics Acquired . | . . Parts Damaged . | . . Bothacking | -11 -10 ------------ Run | Yrd Mat Used RIF Installer . | . . Robots Hacked . | . . Non-combat . | . . Combat . | . . Robot Hacks Applied . | . . Relay Couplers Released . | . . Fabnet Peak Effective % . | . . Robots Rewired . | . . Allies Hacked . | . . Hacks Repelled . | . . Allies | -11 -10 -------- Run | Yrd Mat Total Allies . | . . Largest Group . | . . Highest-Rated Group . | . . Highest-Rated Ally . | . . Total Orders . | . . Ally Attacks . | . . Total Damage . | . . Kills . | . . Allies Corrupted . | . . Allies Melted . | . . Intel | -11 -10 ------- Run | Yrd Mat Active Infowar (turns) . | . . Robot Analysis Total . | . . Derelict Logs Recovered . | . . Drone Launches . | . . Drone Recoveries . | . . Exploration | -11 -10 ------------- Run | Yrd Mat Turns Passed 642 | 73 569 Spaces Moved 281 | 46 235 Core 17 | 12 5 Treads 264 | 34 230 Legs . | . . Wheels . | . . Hover . | . . Flight . | . . Fastest Speed 50 | 50 160 Average Speed 177 | 137 185 Slowest Speed 750 | 160 750 Overloaded Moves . | . . Propulsion Burnouts . | . . Robots Hopped . | . . Potential Cave-ins . | . . Cave-ins Triggered . | . . Exploration Rate (%) 23 | 3 44 Regions Visited 1 Branch Regions . Pre-discovered Areas . | . . Known Exits Taken . | . . Unknown Exits Taken 1 | 1 . Scrap Searched . | . . Spaces Dug . | . . Terrain Destroyed 20 | . 20 Melee . | . . Projectile . | . . AOE 20 | . 20 Terrain Rammed . | . . Walls Destroyed . | . . Machines Disabled . | . . Actions | -11 -10 --------- Run | Yrd Mat Total 364 | 53 311 Wait 12 | . 12 Move 280 | 45 235 Hop . | . . Pick Up 7 | 2 5 Fast Attach 8 | 6 2 Attach 2 | . 2 Detach . | . . Swap 3 | . 3 Drop 2 | . 2 Fire 32 | . 32 Melee . | . . Ram . | . . Kick . | . . Crush 15 | . 15 Escape Stasis . | . . Rewire 3 | . 3 Trap . | . . Miscellaneous . | . . Route ------- -11/Scrapyard -10/Materials (discovered 3 exits: [*Mat x2] / [*Min]) History --------- Turn | Location | Event 8 | -11/Scrapyard | Discovered new exit (range 16) 74 | -11/Scrapyard | Entered Materials 278 | -10/Materials | Discovered new exit (range 8) 316 | -10/Materials | Build established: Mutant 401 | -10/Materials | Discovered new exit (range 8) 472 | -10/Materials | Discovered new exit (range 13) 583 | -10/Materials | Core integrity fell below 50% 593 | -10/Materials | Core integrity fell below 20% 624 | -10/Materials | Lost 5 parts (1p2n1u1w) 643 | -10/Materials | Destroyed self with Grenade Launcher Last Messages --------------- 00620_ K-01 Serf collects debris. 00620_ Acquired 24 matter. 00621_ K-01 Serf collects debris. 00622_ R-06 Scavenger collects Heat Sink. 00622_ U-05 Engineer lays Concrete. 00624_ K-01 Serf collects debris. 00625_ U-05 Engineer builds a Wall. 00626_ K-01 Serf collects debris. 00629_ U-05 Engineer lays Concrete. 00630_ K-01 Serf collects debris. 00632_ U-05 Engineer lays Concrete. 00635_ Acquired 8 matter. 00635_ U-05 Engineer builds a Wall. 00636_ The unstable cave ceiling collapses. 00639_ U-05 Engineer lays Concrete. 00642_ U-05 Engineer builds a Wall. [Achievement: Let's See Who's Tougher] 00643_ G-34 Mercenary destroyed. 00643_ Grenade Launcher destroyed. 00643_ Destroyed Grenade Launcher. Map ----- +----------------------------------------------------+ | ??????????????????????????????????????????? | | ???????????????????????????????????????? | | ??????????????????????????????????????? | | #??????????????????????????????????????? | | #??????????????????????????????????????? | | #??????????????????????????????????????? | | #??????????????????????? ??????????????? | | #??????????????????????? ??????????????? | | #??????????????????????? ??????????????? | | ###?????????????????????+#?????????????? | | ?????????????????????# ##????????????? | | #?????????????????????? ????????????? | | #????###########??????# #????????????? | | ###### # ?????# #????????????? | | #% [=# ????# #????????????? | | #% [=# ????# #????????????? | | / %= # ???# #????????????? | | ##### # * # ####% #??#####?????? | | ##### ########### % #? #?????? | | ##" #????????# [ # #?????? | | ##"" #????????# k # """#?????? | | ##!! ##########????# k """#?????? | | ##"" < # #????# # """#?????? | | ##!! # """ #????# u #?????? | | ##"" # """ ####### % #######?????? | | ##" # """ # @= #????????? | | ?#### ## + % < #????????? | | ##### ## """ # t k #????????? | | ## """ # ### #????????? | | + """ # #?#### ##????????? | | ## # #????# #????????? | | ##### #+###########+###### #????????? | | ????# # # = ## ##????????? | | ????# # """ # """ ## m #?????????? | | ????# # """ "# """ !!!## #?????????? | | ????# # """ T# """ !!!## #?????????? | | ????# # "# ! !## ?????????? | | ????# # # ## ????????? | | ??### ###+######+######### ???????? | | ??# ?????????? | | ??# ?????????? | | ??# ?????????? | | ??# # ###"T"############???????????? | | ??# # #?#"""#??????????????????????? | | ??#